Workbook

Sheet Sheet1
A1: 中国石油大学（北京）外国语学院23级汉语国际教育专业研究生综合测评汇总表
A2: 学号 | B2: 智育成绩 | G2: 德育成绩 | L2: 文体成绩 | Q2: 综测总分 | R2: 排名 | S2: 签字
B3: 学习成绩分数 | C3: 奖励分 | D3: 惩罚分 | E3: 智育总分 | F3: 智育成绩 | G3: 基础分 | H3: 奖励分 | I3: 惩罚分 | J3: 德育总分 | K3: 德育成绩 | L3: 基础分 | M3: 奖励分 | N3: 惩罚分 | O3: 文体总分 | P3: 文体成绩
A4: 2023216404 | B4: 92.66 | C4: 21.15 | D4: 0 | E4: 113.81 | F4: =E4/113.81*100*0.7 -> 70.00 | G4: 100 | H4: =J4-G4 -> 21 | I4: 0 | J4: 121 | K4: =J4/121*100*0.2 -> 20.00 | L4: 100 | M4: =O4-L4 -> 16.6 | N4: 0 | O4: 116.6 | P4: =O4/116.6*100*0.1 -> 10.00 | Q4: =P4+K4+F4 -> 100.00 | R4: 1 | S4: 同学本人已签字
A5: 2023216403 | B5: 94.77 | C5: 15 | D5: 0 | E5: =SUM(B5,C5) -> 109.77 | F5: =E5/113.81*100*0.7 -> 67.52 | G5: 100 | H5: =J5-G5 -> 21 | I5: 0 | J5: 121 | K5: =J5/121*100*0.2 -> 20.00 | L5: 100 | M5: =O5-L5 -> 11.2 | N5: 0 | O5: 111.2 | P5: =O5/116.6*100*0.1 -> 9.54 | Q5: =P5+K5+F5 -> 97.05 | R5: 2 | S5: 同学本人已签字
A6: 2023216418 | B6: 94.57 | C6: 5 | D6: 0 | E6: 99.57 | F6: 61.24 | G6: 100 | H6: 12 | I6: 0 | J6: 112 | K6: 18.51 | L6: 100 | M6: 8.4 | N6: 0 | O6: 108.4 | P6: 9.30 | Q6: =P6+K6+F6 -> 89.05 | R6: 3 | S6: 同学本人已签字
A7: 2023216413 | B7: 92.05 | C7: 3.25 | D7: 0 | E7: 95.3 | F7: 58.62 | G7: 100 | H7: 18 | I7: 0 | J7: 118 | K7: 19.50 | L7: 100 | M7: 0 | N7: 0 | O7: 100 | P7: 8.58 | Q7: 86.70 | R7: 4 | S7: 同学本人已签字
A8: 2023216414 | B8: 93.04 | C8: 0.57 | D8: 0 | E8: =SUM(B8,C8) -> 93.61 | F8: 57.58 | G8: 100 | H8: 16 | I8: 0 | J8: 116 | K8: 19.17 | L8: 100 | M8: 7 | N8: 0 | O8: 107 | P8: 9.18 | Q8: 85.93 | R8: 5 | S8: 同学本人已签字
A9: 2023216407 | B9: 93.53 | C9: 0 | D9: 0 | E9: =SUM(B9,C9) -> 93.53 | F9: 57.53 | G9: 100 | H9: 7 | I9: 0 | J9: 107 | K9: 17.69 | L9: 100 | M9: 2.4 | N9: 0 | O9: 102.4 | P9: 8.78 | Q9: 83.99 | R9: 6 | S9: 同学本人已签字
A10: 2023216412 | B10: 91.54 | C10: 0 | D10: 0 | E10: 91.54 | F10: 56.30 | G10: 100 | H10: 8.6 | I10: 0 | J10: 108.6 | K10: 17.95 | L10: 100 | M10: 12 | N10: 0 | O10: 112 | P10: 9.61 | Q10: 83.86 | R10: 7 | S10: 同学本人已签字
A11: 2023216406 | B11: 91.30 | C11: 0 | D11: 0 | E11: 91.30 | F11: 56.15 | G11: 100 | H11: 12.3 | I11: 0 | J11: 112.3 | K11: 18.56 | L11: 100 | M11: 5.4 | N11: 0 | O11: 105.4 | P11: 9.04 | Q11: 83.76 | R11: 8 | S11: 同学本人已签字
A12: 2023216415 | B12: 91.29 | C12: 0 | D12: 0 | E12: 91.29 | F12: 56.15 | G12: 100 | H12: 9.8 | I12: 0 | J12: 109.8 | K12: 18.15 | L12: 100 | M12: 6.4 | N12: 0 | O12: 106.4 | P12: 9.13 | Q12: 83.42 | R12: 9 | S12: 同学本人已签字
A13: 2023216422 | B13: 93.10 | C13: 0 | D13: 0 | E13: 93.10 | F13: 57.26 | G13: 100 | H13: 2 | I13: 0 | J13: 102 | K13: 16.86 | L13: 100 | M13: 8 | N13: 0 | O13: 108 | P13: 9.26 | Q13: 83.38 | R13: 10 | S13: 同学本人已签字
A14: 2023216408 | B14: 92.89 | C14: 0 | D14: 0 | E14: 92.89 | F14: 57.13 | G14: 100 | H14: 4 | I14: 0 | J14: 104 | K14: 17.19 | L14: 100 | M14: 0 | N14: 0 | O14: 100 | P14: 8.58 | Q14: 82.90 | R14: 11 | S14: 同学本人已签字
A15: 2023216416 | B15: 92.65 | C15: 0 | D15: 0 | E15: 92.65 | F15: 56.99 | G15: 100 | H15: 3 | I15: 0 | J15: 103 | K15: 17.02 | L15: 100 | M15: 2 | N15: 0 | O15: 102 | P15: 8.75 | Q15: 82.76 | R15: 12 | S15: 同学本人已签字
A16: 2023216410 | B16: 91.98 | C16: 0 | D16: 0 | E16: 91.98 | F16: 56.57 | G16: 100 | H16: 4.6 | I16: 0 | J16: 104.6 | K16: 17.29 | L16: 100 | M16: 0 | N16: 0 | O16: 100 | P16: 8.58 | Q16: 82.44 | R16: 13 | S16: 同学本人已签字
A17: 2023216411 | B17: 90.39 | C17: 0 | D17: 0 | E17: 90.39 | F17: 55.60 | G17: 100 | H17: 6 | I17: 0 | J17: 106 | K17: 17.52 | L17: 100 | M17: 7.4 | N17: 0 | O17: 107.4 | P17: 9.21 | Q17: 82.33 | R17: 14 | S17: 同学本人已签字
A18: 2023216417 | B18: 88.93 | C18: 0 | D18: 0 | E18: 88.93 | F18: 54.70 | G18: 100 | H18: 8.8 | I18: 0 | J18: 108.8 | K18: 17.98 | L18: 100 | M18: 11 | N18: 0 | O18: 111 | P18: 9.52 | Q18: 82.20 | R18: 15 | S18: 同学本人已签字
A19: 2023216401 | B19: 91.81 | C19: 0 | D19: 0 | E19: 91.81 | F19: 56.47 | G19: 100 | H19: 1 | I19: 0 | J19: 101 | K19: 16.69 | L19: 100 | M19: 4 | N19: 0 | O19: 104 | P19: 8.92 | Q19: 82.08 | R19: 16 | S19: 同学本人已签字
A20: 2023216421 | B20: 89.61 | C20: 0 | D20: 0 | E20: 89.61 | F20: =E20/113.81*100*0.7 -> 55.12 | G20: 100 | H20: =J20-G20 -> 8.8 | I20: 0 | J20: 108.8 | K20: =J20/121*100*0.2 -> 17.98 | L20: 100 | M20: =O20-L20 -> 4 | N20: 0 | O20: 104 | P20: =O20/116.6*100*0.1 -> 8.92 | Q20: =P20+K20+F20 -> 82.02 | R20: 17 | S20: 同学本人已签字
A21: 2023216409 | B21: 90.79 | C21: 0 | D21: 0 | E21: 90.79 | F21: =E21/113.81*100*0.7 -> 55.84 | G21: 100 | H21: =J21-G21 -> 4 | I21: 0 | J21: 104 | K21: =J21/121*100*0.2 -> 17.19 | L21: 100 | M21: =O21-L21 -> 4 | N21: 0 | O21: 104 | P21: =O21/116.6*100*0.1 -> 8.92 | Q21: =P21+K21+F21 -> 81.95 | R21: 18 | S21: 同学本人已签字
A22: 2023216425 | B22: 91.37 | C22: 0 | D22: 0 | E22: 91.37 | F22: 56.20 | G22: 100 | H22: 2 | I22: 0 | J22: 102 | K22: 16.86 | L22: 100 | M22: 0 | N22: 0 | O22: 100 | P22: 8.58 | Q22: 81.63 | R22: 19 | S22: 同学本人已签字
A23: 2023216419 | B23: 90.24 | C23: 0 | D23: 0 | E23: 90.24 | F23: 55.50 | G23: 100 | H23: 5 | I23: 0 | J23: 105 | K23: 17.36 | L23: 100 | M23: 0 | N23: 0 | O23: 100 | P23: 8.58 | Q23: 81.43 | R23: 20 | S23: 同学本人已签字
A24: 2023216405 | B24: 90.73 | C24: 0 | D24: 0 | E24: 90.73 | F24: 55.80 | G24: 100 | H24: 3 | I24: 0 | J24: 103 | K24: 17.02 | L24: 100 | M24: 0 | N24: 0 | O24: 100 | P24: 8.58 | Q24: 81.41 | R24: 21 | S24: 同学本人已签字
A25: 2023216424 | B25: 91.17 | C25: 0 | D25: 0 | E25: 91.17 | F25: 56.08 | G25: 100 | H25: 0 | I25: 0 | J25: 100 | K25: 16.53 | L25: 100 | M25: 0 | N25: 0 | O25: 100 | P25: 8.58 | Q25: 81.18 | R25: 22 | S25: 同学本人已签字
A26: 2023216420 | B26: 89.48 | C26: 0 | D26: 0 | E26: 89.48 | F26: 55.04 | G26: 100 | H26: 3 | I26: 0 | J26: 103 | K26: 17.02 | L26: 100 | M26: 0 | N26: 0 | O26: 100 | P26: 8.58 | Q26: 80.64 | R26: 23 | S26: 同学本人已签字
A27: 2023216402 | B27: 87.88 | C27: 0 | D27: 0 | E27: 87.88 | F27: 54.05 | G27: 100 | H27: 0 | I27: 0 | J27: 100 | K27: 16.53 | L27: 100 | M27: 0 | N27: 0 | O27: 100 | P27: 8.58 | Q27: 79.16 | R27: 24 | S27: 同学本人已签字

Sheet Sheet2

Sheet Sheet3
